fUST/lending_fUST_20250808
["ID","MTS","AMOUNT","RATE_DAILY","PERIOD"]
[377903786,1754610647706,-151.0,0.00023871,7]
[377903789,1754610647715,-231.180068,0.00023871,7]
[377903791,1754610647725,-151.0,0.00023871,7]
[377903793,1754610647734,-151.0,0.000239,7]
[377903794,1754610647744,-1680.0,0.00023928,2]
[377903796,1754610647753,-500.0,0.00023959,2]
[377903799,1754610647764,-500.0,0.00023959,2]
[377903801,1754610647773,-500.0,0.00023959,2]
[377903803,1754610647784,-151.0,0.00023959,7]
[377903805,1754610647794,-151.0,0.00023959,7]
[377903807,1754610647804,-255.63224,0.00023959,7]
[377903809,1754610647813,-151.0,0.00023959,7]
[377903811,1754610647823,-151.0,0.00023959,7]
[377903813,1754610647832,-1699.06142133,0.00024,2]
[377903815,1754610647842,-455.3730055,0.00024,2]
[377903817,1754610647851,-322.90547651,0.00024,2]
[377903819,1754610647861,-1023.93026867,0.00024,7]
[377903821,1754610647871,-160.0,0.00024,7]
[377903823,1754610647881,-160.0,0.00024,7]
[377903825,1754610647890,-160.0,0.00024,7]
[377903827,1754610647899,-231.83071243,0.00024,7]
[377903829,1754610647910,-150.0,0.00024008,2]
[377903832,1754610647921,-636.0,0.00024034,2]
[377903834,1754610647931,-2149.0,0.00024034,2]
[377903836,1754610647940,-971.0,0.00024034,2]
[377903838,1754610647949,-195.07,0.00024034,2]
[377903840,1754610647959,-250.0,0.00024056,2]
[377903842,1754610647969,-789.4,0.00024067,3]
[377903844,1754610647980,-151.0,0.000241,5]
[377903846,1754610647989,-1397.12,0.00024108,2]
[377903848,1754610647999,-831.66,0.00024108,2]
[377903850,1754610648009,-460.0,0.00024108,2]
[377903852,1754610648019,-4486.66250676,0.00024109,2]
[377903854,1754610648029,-460.0,0.00024109,2]
[377903856,1754610648038,-460.0,0.00024109,2]
[377903858,1754610648048,-460.0,0.00024109,2]
[377903860,1754610648058,-460.0,0.00024109,2]
[377903862,1754610648068,-460.0,0.00024109,2]
[377903864,1754610648078,-151.0,0.00024109,7]
[377903866,1754610648087,-460.0,0.00024109,2]
[377903868,1754610648097,-641.17,0.00024109,2]
[377903870,1754610648106,-2781.79,0.00024109,2]
[377903872,1754610648118,-460.0,0.00024109,2]
[377903874,1754610648128,-460.0,0.00024109,2]
[377903876,1754610648137,-247.927842,0.00024109,7]
[377903878,1754610648147,-1103.87,0.00024109,2]
[377903880,1754610648158,-151.0,0.00024109,7]
[377903882,1754610648167,-284.005752,0.00024109,7]
[377903885,1754610648177,-196.723902,0.00024109,7]
[377903887,1754610648188,-151.0,0.00024109,7]
[377903889,1754610648198,-151.0,0.00024109,7]
[377903891,1754610648208,-693.2,0.00024109,2]
[377903893,1754610648217,-1814.78,0.00024109,2]
[377903895,1754610648227,-196.723902,0.00024109,7]
[377903897,1754610648236,-221.931224,0.00024109,7]
[377903898,1754610648245,-465.96,0.00024109,2]
[377903900,1754610648255,-151.0,0.00024109,7]
[377903902,1754610648265,-460.0,0.00024109,2]
[377903904,1754610648275,-740.8,0.00024109,2]
[377903906,1754610648286,-565.0,0.00024109,2]
[377903909,1754610648295,-460.0,0.00024109,2]
[377903910,1754610648304,-1744.23,0.00024109,2]
[377903911,1754610648314,-825.35,0.00024109,2]
[377903912,1754610648323,-2016.26,0.00024109,2]
[377903914,1754610648333,-583.938916,0.00024109,7]
[377903916,1754610648342,-1184.54,0.00024109,2]
[377903918,1754610648352,-460.0,0.00024109,2]
[377903920,1754610648361,-583.938916,0.00024109,7]
[377903922,1754610648371,-611.3,0.00024109,2]
[377903924,1754610648381,-460.0,0.00024109,2]
[377903926,1754610648391,-625.24,0.00024109,2]
[377903928,1754610648400,-460.0,0.00024109,2]
[377903930,1754610648410,-657.53,0.00024109,2]
[377903931,1754610648419,-752.77,0.00024109,2]
[377903932,1754610648430,-461.3,0.00024109,2]
[377903933,1754610648440,-1123.57,0.00024109,2]
[377903934,1754610648450,-460.0,0.00024109,2]
[377903935,1754610648459,-789.58,0.00024109,2]
[377903936,1754610648469,-468.9,0.00024109,2]
[377903937,1754610648479,-460.0,0.00024109,2]
[377903938,1754610648489,-726.86,0.00024109,2]
[377903939,1754610648499,-531.358459,0.00024109,7]
[377903940,1754610648508,-531.358459,0.00024109,7]
[377903941,1754610648519,-1252.34,0.00024109,2]
[377903942,1754610648529,-638.71,0.00024109,2]
[377903943,1754610648538,-747.88,0.00024109,2]
[377903944,1754610648548,-460.0,0.00024109,2]
[377903945,1754610648558,-460.0,0.00024109,2]
[377903946,1754610648568,-460.0,0.00024109,2]
[377903947,1754610648578,-1000.0,0.0002411,2]
[377903948,1754610648588,-152.99510135,0.00024126,2]
[377903949,1754610648598,-151.0,0.00024139,7]
[377903950,1754610648609,-151.0,0.00024139,7]
[377903951,1754610648619,-151.903369,0.00024139,7]
[377903952,1754610648629,-151.903369,0.00024139,7]
[377903953,1754610648639,-186.012926,0.00024139,7]
[377903954,1754610648649,-186.012926,0.00024139,7]
[377903955,1754610648659,-151.0,0.000242,10]
[377903956,1754610648668,-360.0,0.00024272,2]
[377903957,1754610648678,-233.41364714,0.00024325,2]
[377903958,1754610648688,-178.842,0.00024353,6]
[377903959,1754610648697,-783.501,0.00024353,6]
[377903960,1754610648707,-512.0,0.00024375,2]
[377903961,1754610648716,-151.0,0.00024375,7]
[377903962,1754610648725,-151.0,0.00024375,7]
[377903963,1754610648735,-1397.12,0.00024382,2]
[377903964,1754610648745,-831.66,0.00024382,2]
[377903965,1754610648755,-460.0,0.00024382,2]
[377903966,1754610648765,-151.0,0.00024383,7]
[377903967,1754610648774,-151.0,0.00024383,7]
[377903968,1754610648784,-151.0,0.00024383,7]
[377903969,1754610648794,-151.0,0.00024383,7]
[377903970,1754610648804,-151.0,0.00024383,7]
[377903971,1754610648813,-151.0,0.00024383,7]
[377903972,1754610648823,-453.564959,0.00024383,7]
[377903973,1754610648833,-453.564959,0.00024383,7]
[377903974,1754610648843,-151.0,0.00024383,7]
[377903975,1754610648852,-460.0,0.00024383,2]
[377903976,1754610648863,-254.84,0.00024383,2]
[377903977,1754610648873,-151.0,0.00024383,7]
[377903978,1754610648884,-293.57242511,0.00024383,2]
[377903979,1754610648894,-460.0,0.00024383,2]
[377903980,1754610648904,-460.0,0.00024383,2]
[377903981,1754610648914,-172.289034,0.00024383,7]
[377903982,1754610648923,-151.0,0.00024383,7]
[377903983,1754610648933,-151.0,0.00024383,7]
[377903984,1754610648943,-460.0,0.00024383,2]
[377903985,1754610648953,-165.862277,0.00024383,7]
[377903986,1754610648963,-641.17,0.00024383,2]
[377903987,1754610648973,-165.862277,0.00024383,7]
[377903988,1754610648983,-151.0,0.00024383,7]
[377903989,1754610648992,-152.870138,0.00024383,7]
[377903990,1754610649002,-2781.79,0.00024383,2]
[377903991,1754610649012,-151.0,0.00024383,7]
[377903992,1754610649022,-151.0,0.00024383,7]
[377903993,1754610649032,-151.0,0.00024383,7]
[377903994,1754610649042,-460.0,0.00024383,2]
[377903995,1754610649053,-151.0,0.00024383,7]
[377903996,1754610649062,-460.0,0.00024383,2]
[377903997,1754610649071,-151.0,0.00024383,7]
[377903998,1754610649082,-151.0,0.00024383,7]
[377903999,1754610649091,-1162.656765,0.00024383,7]
[377904000,1754610649100,-1162.656765,0.00024383,7]
[377904001,1754610649110,-527.57568145,0.00024383,7]
[377904002,1754610649123,-1103.87,0.00024383,2]
[377904003,1754610649133,-160.0,0.00024383,7]
[377904004,1754610649143,-693.2,0.00024383,2]
[377904005,1754610649155,-1814.78,0.00024383,2]
[377904006,1754610649166,-312.16666667,0.00024383,7]
[377904007,1754610649175,-216.52217562,0.00024383,7]
[377904008,1754610649185,-460.0,0.00024383,2]
[377904009,1754610649196,-740.8,0.00024383,2]
[377904010,1754610649206,-565.0,0.00024383,2]
[377904011,1754610649216,-460.0,0.00024383,2]
[377904012,1754610649225,-1744.23,0.00024383,2]
[377904013,1754610649236,-825.35,0.00024383,2]
[377904014,1754610649246,-2016.26,0.00024383,2]
[377904015,1754610649256,-1184.54,0.00024383,2]
[377904016,1754610649266,-460.0,0.00024383,2]
[377904017,1754610649275,-611.3,0.00024383,2]
[377904018,1754610649286,-460.0,0.00024383,2]
[377904019,1754610649295,-151.0,0.00024383,7]
[377904020,1754610649305,-625.24,0.00024383,2]
[377904021,1754610649315,-234.68167474,0.00024383,2]
[377904022,1754610649325,-657.53,0.00024383,2]
[377904023,1754610649335,-151.0,0.00024383,7]
[377904024,1754610649345,-752.77,0.00024383,2]
[377904025,1754610649355,-461.3,0.00024383,2]
[377904026,1754610649365,-1123.57,0.00024383,2]
[377904027,1754610649375,-242.55830214,0.00024383,2]
[377904028,1754610649385,-789.58,0.00024383,2]
[377904029,1754610649395,-468.9,0.00024383,2]
[377904030,1754610649405,-460.0,0.00024383,2]
[377904031,1754610649415,-726.86,0.00024383,2]
[377904032,1754610649424,-151.0,0.00024383,7]
[377904033,1754610649553,-151.0,0.00024383,7]
[377904034,1754610649563,-638.71,0.00024383,2]
[377904035,1754610649572,-1252.34,0.00024383,2]
[377904036,1754610649581,-151.0,0.00024383,7]
[377904037,1754610649591,-747.88,0.00024383,2]
[377904038,1754610649600,-460.0,0.00024383,2]
[377904039,1754610649610,-460.0,0.00024383,2]
[377904040,1754610649619,-460.0,0.00024383,2]
[377904041,1754610649628,-512.0,0.00024394,2]
[377904042,1754610649637,-151.0,0.000244,5]
[377904043,1754610649647,-151.0,0.000244,10]
[377904044,1754610649656,-789.4,0.00024455,3]
[377904045,1754610649665,-600.0,0.0002446,2]
[377904046,1754610649675,-5888.0,0.00024478,7]
[377904047,1754610649683,-659.09255411,0.000245,2]
[377904048,1754610649693,-274.418852,0.000245,7]
[377904049,1754610649702,-274.418852,0.000245,2]
[377904050,1754610649711,-367.63426456,0.00024507,2]
[377904051,1754610649721,-1000.0,0.00024507,2]
[377904052,1754610649730,-826.13675322,0.00024507,2]
[377904053,1754610649739,-512.0,0.00024525,2]
[377904054,1754610649748,-218.91,0.00024532,2]
[377904055,1754610649757,-194.07,0.00024532,2]
[377904056,1754610649767,-512.0,0.00024553,2]
[377904057,1754610649776,-512.0,0.00024588,2]
[377904058,1754610649788,-200.0,0.00024649,2]
[377904059,1754610649797,-160.36555178,0.00024649,2]
[377904060,1754610649806,-338517.76751337,0.0002465,2]
[377904061,1754610649815,-503.62307387,0.0002465,2]
[377904062,1754610649825,-274.148241,0.0002465,7]
[377904063,1754610649834,-152.060871,0.0002465,7]
[377904064,1754610649843,-151.0,0.0002465,7]
[377904065,1754610649852,-151.0,0.0002465,7]
[377904066,1754610649862,-151.0,0.0002465,7]
[377904067,1754610649871,-151.0,0.0002465,7]
[377904068,1754610649881,-234.146742,0.0002465,7]
[377904069,1754610649890,-151.0,0.0002465,7]
[377904070,1754610649899,-151.0,0.0002465,7]
[377904071,1754610649909,-151.0,0.0002465,7]
[377904072,1754610649918,-151.0,0.0002465,7]
[377904073,1754610649927,-151.0,0.0002465,7]
[377904074,1754610649936,-151.0,0.0002465,7]
[377904075,1754610649945,-151.0,0.0002465,7]
[377904076,1754610649954,-151.0,0.0002465,7]
[377904077,1754610649963,-151.0,0.0002465,7]
[377904078,1754610649972,-151.0,0.0002465,7]
[377904079,1754610649981,-151.0,0.0002465,7]
[377904080,1754610649990,-151.0,0.0002465,7]
[377904081,1754610650000,-151.0,0.0002465,7]
[377904082,1754610650010,-151.0,0.0002465,7]
[377904083,1754610650019,-151.0,0.0002465,7]
[377904084,1754610650029,-151.0,0.0002465,7]
[377904085,1754610650038,-151.0,0.0002465,7]
[377904086,1754610650047,-151.0,0.0002465,7]
[377904087,1754610650056,-151.0,0.0002465,7]
[377904088,1754610650065,-151.0,0.0002465,7]
[377904089,1754610650075,-151.0,0.0002465,7]
[377904090,1754610650084,-151.0,0.0002465,7]
[377904091,1754610650093,-244.864117,0.0002465,7]
[377904092,1754610650102,-453.564959,0.0002465,7]
[377904093,1754610650114,-453.564959,0.0002465,7]
[377904094,1754610650125,-174.057901,0.0002465,7]
[377904095,1754610650134,-151.0,0.0002465,7]
[377904096,1754610650144,-151.0,0.0002465,7]
[377904097,1754610650154,-151.0,0.0002465,7]
[377904098,1754610650164,-151.983936,0.0002465,7]
[377904099,1754610650173,-184.316428,0.0002465,7]
[377904100,1754610650182,-231.180068,0.0002465,7]
[377904101,1754610650194,-231.180068,0.0002465,7]
[377904102,1754610650204,-231.180068,0.0002465,7]
[377904103,1754610650213,-231.180068,0.0002465,7]
[377904104,1754610650223,-151.0,0.0002465,7]
[377904105,1754610650233,-151.0,0.0002465,7]
[377904106,1754610650242,-151.0,0.0002465,7]
[377904107,1754610650252,-165.862277,0.0002465,7]
[377904108,1754610650262,-151.0,0.0002465,7]
[377904109,1754610650271,-165.862277,0.0002465,7]
[377904110,1754610650281,-151.0,0.0002465,7]
[377904111,1754610650290,-155.772803,0.0002465,7]
[377904112,1754610650299,-151.0,0.0002465,7]
[377904113,1754610650308,-151.0,0.0002465,7]
[377904114,1754610650318,-1162.656765,0.0002465,7]
[377904115,1754610650327,-1162.656765,0.0002465,7]
[377904116,1754610650337,-527.57568145,0.0002465,7]
[377904117,1754610650346,-151.0,0.0002465,7]
[377904118,1754610650355,-196.723902,0.0002465,7]
[377904119,1754610650366,-151.0,0.0002465,7]
[377904120,1754610650375,-151.0,0.0002465,7]
[377904121,1754610650384,-196.723902,0.0002465,7]
[377904122,1754610650393,-151.0,0.0002465,7]
[377904123,1754610650402,-151.0,0.0002465,7]
[377904124,1754610650412,-583.938916,0.0002465,7]
[377904125,1754610650421,-583.938916,0.0002465,7]
[377904126,1754610650430,-151.903369,0.0002465,7]
[377904127,1754610650439,-151.903369,0.0002465,7]
[377904128,1754610650449,-186.012926,0.0002465,7]
[377904129,1754610650458,-186.012926,0.0002465,7]
[377904130,1754610650467,-151.0,0.0002465,7]
[377904131,1754610650476,-151.0,0.0002465,7]
[377904132,1754610650486,-531.358459,0.0002465,7]
[377904133,1754610650495,-151.0,0.0002465,7]
[377904134,1754610650506,-531.358459,0.0002465,7]
[377904135,1754610650515,-151.0,0.0002465,7]
[377904136,1754610650524,-12660.90439413,0.0002465,7]
[377904137,1754610650533,-160.0,0.0002465,7]
[377904138,1754610650542,-151.0,0.0002465,7]
[377904139,1754610650551,-5888.0,0.00024653,2]
[377904140,1754610650560,-1397.12,0.00024656,2]
[377904141,1754610650570,-831.66,0.00024656,2]
[377904142,1754610650579,-460.0,0.00024656,2]
[377904143,1754610650589,-359.11507111,0.00024657,2]
[377904144,1754610650598,-460.0,0.00024657,2]
[377904145,1754610650607,-460.0,0.00024657,2]
[377904146,1754610650617,-467.023142,0.00024657,2]
[377904147,1754610650626,-641.17,0.00024657,2]
[377904148,1754610650636,-2781.79,0.00024657,2]
[377904149,1754610650645,-460.0,0.00024657,2]
[377904150,1754610650654,-460.0,0.00024657,2]
[377904151,1754610650664,-1103.87,0.00024657,2]
[377904152,1754610650673,-693.2,0.00024657,2]
[377904153,1754610650682,-1814.78,0.00024657,2]
[377904154,1754610650691,-460.0,0.00024657,2]
[377904155,1754610650701,-740.8,0.00024657,2]
[377904156,1754610650710,-565.0,0.00024657,2]
[377904157,1754610650719,-460.0,0.00024657,2]
[377904158,1754610650728,-1744.23,0.00024657,2]
[377904159,1754610650738,-825.35,0.00024657,2]
[377904160,1754610650747,-2016.26,0.00024657,2]
[377904161,1754610650757,-1184.54,0.00024657,2]
[377904162,1754610650765,-460.0,0.00024657,2]
[377904163,1754610650775,-611.3,0.00024657,2]
[377904164,1754610650785,-460.0,0.00024657,2]
[377904165,1754610650795,-625.24,0.00024657,2]
[377904166,1754610650804,-657.53,0.00024657,2]
[377904167,1754610650813,-752.77,0.00024657,2]
[377904168,1754610650822,-461.3,0.00024657,2]
[377904169,1754610650832,-1123.57,0.00024657,2]
[377904170,1754610650841,-789.58,0.00024657,2]
[377904171,1754610650850,-468.9,0.00024657,2]
[377904172,1754610650859,-460.0,0.00024657,2]
[377904173,1754610650869,-726.86,0.00024657,2]
[377904174,1754610650880,-638.71,0.00024657,2]
[377904175,1754610650889,-1252.34,0.00024657,2]
[377904176,1754610650899,-747.88,0.00024657,2]
[377904177,1754610650910,-460.0,0.00024657,2]
[377904178,1754610650919,-159.58591512,0.00024657,2]
[377904179,1754610651089,-231.83071243,0.0002465,7]
[377904180,1754610651099,-300.41408488,0.00024657,2]
[377904181,1754610651108,-206.42289639,0.00024657,2]
[377904182,1754610651397,-500.0,0.00021916,2]
[377904183,1754610651407,-500.0,0.00021916,2]
[377904184,1754610651416,-500.0,0.00021916,2]
[377904185,1754610651426,-161.32437421,0.00021916,2]
[377904186,1754610651435,-552.37858907,0.00021916,2]
[377904187,1754610651445,-500.0,0.00021916,2]
[377904188,1754610651455,-417.82124285,0.00021916,2]
[377904189,1754610651464,-460.0,0.00021917,2]
[377904190,1754610651474,-842.63596909,0.00023,3]
[377904191,1754610651483,-151.0,0.00023013,7]
[377904192,1754610651494,-151.0,0.00023287,7]
[377904193,1754610651504,-151.0,0.00023561,7]
[377904194,1754610651514,-842.63596909,0.00024,7]
[377904195,1754610651523,-151.0,0.00024109,7]
[377904196,1754610651532,-151.0,0.0002465,7]
[377904197,1754610651542,-253.57710361,0.00024657,2]
[377904198,1754610651551,-380.0,0.00024658,2]
[377904199,1754610651560,-200.0,0.00024658,15]
[377904200,1754610651570,-151.0,0.00024658,7]
[377904201,1754610651580,-151.0,0.00024658,7]
[377904202,1754610651590,-151.0,0.00024658,7]
[377904203,1754610651602,-151.0,0.00024658,7]
[377904204,1754610651612,-1500.0,0.00024658,2]
[377904205,1754610651622,-500.0,0.00024658,2]
[377904206,1754610651632,-5888.0,0.0002466,2]
[377904207,1754610651642,-151.0,0.00024661,2]
[377904208,1754610651651,-500.0,0.00024673,2]
[377904209,1754610651661,-500.0,0.00024673,2]
[377904210,1754610651670,-500.0,0.00024673,2]
[377904211,1754610651681,-500.0,0.00024673,2]
[377904212,1754610651690,-218.05065774,0.00024673,2]
[377904213,1754610651701,-501.23819731,0.00024673,2]
[377904214,1754610651711,-604.94525704,0.00024673,2]
[377904215,1754610651720,-500.0,0.00024673,2]
[377904216,1754610651730,-500.0,0.00024673,2]
[377904217,1754610651739,-500.0,0.00024673,2]
[377904218,1754610651749,-500.0,0.00024673,2]
[377904219,1754610651758,-500.0,0.00024673,2]
[377904220,1754610651769,-500.0,0.00024673,2]
[377904221,1754610651781,-150.0,0.00024673,2]
[377904222,1754610651791,-501.71365784,0.00024673,2]
[377904223,1754610651801,-241.60563885,0.00024673,2]
[377904224,1754610651810,-500.0,0.00024673,2]
[377904225,1754610651819,-500.0,0.00024673,2]
[377904226,1754610651828,-504.05394247,0.00024673,2]
[377904227,1754610651838,-500.0,0.00024673,2]
[377904228,1754610651847,-500.5727922,0.00024673,2]
[377904229,1754610651858,-500.0,0.00024673,2]
[377904230,1754610651868,-500.0,0.00024673,2]
[377904231,1754610651878,-500.0,0.00024673,2]
[377904232,1754610651887,-500.0,0.00024673,2]
[377904233,1754610651898,-500.0,0.00024673,2]
[377904234,1754610651909,-512.0,0.00024689,2]
[377904235,1754610651919,-151.0,0.000247,10]
[377904236,1754610651929,-600.0,0.00024715,2]
[377904237,1754610651938,-512.0,0.00024721,2]
[377904238,1754610651947,-151.3335,0.00024749,2]
[377904239,1754610651957,-151.0,0.000248,7]
[377904240,1754610651966,-182.172375,0.000248,7]
[377904241,1754610651975,-151.0,0.000248,7]
[377904242,1754610651985,-151.0,0.000248,7]
[377904243,1754610651995,-151.0,0.000248,7]
[377904244,1754610652004,-453.564959,0.000248,7]
[377904245,1754610652013,-453.564959,0.000248,7]
[377904246,1754610652022,-151.0,0.000248,7]
[377904247,1754610652031,-274.418852,0.000248,14]
[377904248,1754610652040,-11197.27896651,0.000248,2]
[377904249,1754610652049,-312.16666667,0.000248,7]
[377904250,1754610652059,-216.52217562,0.000248,7]
[377904251,1754610652069,-233.41364714,0.000248,2]
[377904252,1754610652079,-151.0,0.000248,7]
[377904253,1754610652088,-460.0,0.0002482,2]
[377904254,1754610652100,-789.4,0.00024844,3]
[377904255,1754610652110,-500.0,0.00024873,2]
[377904256,1754610652124,-500.0,0.00024873,2]
[377904257,1754610652134,-500.0,0.00024873,2]
[377904258,1754610652143,-500.0,0.00024873,2]
[377904259,1754610652152,-500.0,0.00024873,2]
[377904260,1754610652163,-501.61245497,0.00024873,2]
[377904261,1754610652174,-500.0,0.00024873,2]
[377904262,1754610652183,-500.0,0.00024873,2]
[377904263,1754610652194,-500.0,0.00024873,2]
[377904264,1754610652204,-500.0,0.00024873,2]
[377904265,1754610652215,-500.0,0.00024873,2]
[377904266,1754610652224,-500.0,0.00024873,2]
[377904267,1754610652233,-500.0,0.00024873,2]
[377904268,1754610652242,-151.0,0.00024873,2]
[377904269,1754610652251,-512.0,0.00024881,2]
[377904270,1754610652261,-274.418852,0.0002489,15]
[377904271,1754610652270,-151.0,0.000249,7]
[377904272,1754610652280,-151.0,0.000249,7]
[377904273,1754610652290,-151.0,0.000249,7]
[377904274,1754610652300,-151.0,0.000249,7]
[377904275,1754610652309,-453.564959,0.000249,7]
[377904276,1754610652318,-453.564959,0.000249,7]
[377904277,1754610652327,-151.0,0.000249,7]
[377904278,1754610652337,-151.0,0.000249,7]
[377904279,1754610652347,-151.0,0.000249,7]
[377904280,1754610652358,-231.180068,0.000249,7]
[377904281,1754610652368,-231.180068,0.000249,7]
[377904282,1754610652377,-151.0,0.000249,7]
[377904283,1754610652387,-151.0,0.000249,7]
[377904284,1754610652396,-165.862277,0.000249,7]
[377904285,1754610652524,-151.0,0.000249,7]
[377904286,1754610652534,-165.862277,0.000249,7]
[377904287,1754610652544,-151.0,0.000249,7]
[377904288,1754610652553,-153.587396,0.000249,7]
[377904289,1754610652563,-151.0,0.000249,7]
[377904290,1754610652572,-151.0,0.000249,7]
[377904291,1754610652583,-151.0,0.000249,7]
[377904292,1754610652592,-151.0,0.000249,7]
[377904293,1754610652602,-1162.656765,0.000249,7]
[377904294,1754610652611,-1162.656765,0.000249,7]
[377904295,1754610652621,-151.0,0.000249,7]
[377904296,1754610652630,-196.723902,0.000249,7]
[377904297,1754610652639,-151.0,0.000249,7]
[377904298,1754610652649,-151.0,0.000249,7]
[377904299,1754610652658,-196.723902,0.000249,7]
[377904300,1754610652668,-151.0,0.000249,7]
[377904301,1754610652677,-151.0,0.000249,7]
[377904302,1754610652687,-151.0,0.000249,7]
[377904303,1754610652696,-583.938916,0.000249,7]
[377904304,1754610652705,-583.938916,0.000249,7]
[377904305,1754610652714,-38513.13803072,0.000249,2]
[377904306,1754610803644,24900.0,0.00021188,2]
[377904311,1754610922199,400.46,0.0002148,2]
[377904312,1754611210139,1495.07,0.000296,120]
[377904313,1754611210587,498.35,0.000229,30]
[377904315,1754611388922,275.46,0.0002148,2]
[377904321,1754611526407,25407.0,0.00031914,30]
[377904382,1754611832402,-1037.07359746,0.00021815,2]
[377904877,1754611838179,-162.92640254,0.00021815,2]
[377904878,1754611838190,-1200.0,0.00021816,2]
[377904879,1754611838200,-300.0,0.00021816,2]
[377904880,1754611838210,-300.0,0.00021816,2]
[377904881,1754611838220,-300.0,0.00021816,2]
[377904882,1754611838230,-300.0,0.00021816,2]
[377904883,1754611838240,-7008.50885783,0.00021817,2]
[377904884,1754611838250,-500.0,0.00021917,2]
[377904885,1754611838260,-460.0,0.00021917,2]
[377904886,1754611838269,-460.0,0.00021917,2]
[377904887,1754611838279,-460.0,0.00021917,2]
[377904888,1754611838288,-460.0,0.00021917,2]
[377904889,1754611838298,-359.11507111,0.00021917,2]
[377904890,1754611838307,-460.0,0.00021917,2]
[377904891,1754611838317,-460.0,0.00021917,2]
[377904892,1754611838326,-460.0,0.00021917,2]
[377904893,1754611838336,-460.0,0.00021917,2]
[377904894,1754611838347,-460.0,0.00021917,2]
[377904895,1754611838356,-467.023142,0.00021917,2]
[377904896,1754611838366,-460.0,0.00021917,2]
[377904897,1754611838377,-460.0,0.00021917,2]
[377904898,1754611838389,-1176.15,0.00021917,2]
[377904899,1754611838403,-460.0,0.00021917,2]
[377904900,1754611838413,-460.0,0.00021917,2]
[377904901,1754611838423,-453.36669912,0.00021917,2]
[377904902,1754611838435,-6.63330088,0.00021917,2]
[377904903,1754611838448,-873.2,0.00021917,2]
[377904904,1754611838458,-460.0,0.00021917,2]
[377904905,1754611838467,-655.41,0.00021917,2]
[377904906,1754611838478,-540.67,0.00021917,2]
[377904907,1754611838489,-460.0,0.00021917,2]
[377904908,1754611838498,-460.0,0.00021917,2]
[377904909,1754611838508,-460.0,0.00021917,2]
[377904910,1754611838518,-519.79,0.00021917,2]
[377904911,1754611838529,-476.47,0.00021917,2]
[377904912,1754611838539,-460.0,0.00021917,2]
[377904913,1754611838549,-460.0,0.00021917,2]
[377904914,1754611838560,-460.0,0.00021917,2]
[377904916,1754611838571,-460.0,0.00021917,2]
[377904919,1754611838581,-460.0,0.00021917,2]
[377904921,1754611838591,-466.78376652,0.00021917,2]
[377904923,1754611838601,-460.0,0.00021917,2]
[377904924,1754611838610,-460.59,0.00021917,2]
[377904927,1754611838620,-460.0,0.00021917,2]
[377904928,1754611838633,-460.0,0.00021917,2]